Cogmind - Beta 15 @@@ ROGUE MODE // 2025.08.23 @ 23:17:19 Player: Yldhra Result: Destroyed by EJ-BRN(R) with Subdweller Laser Performance ------------- Evolutions (0) 0 Regions Visited (3) 600 Robots Destroyed (11) 55 Value Destroyed (244) 244 Prototype IDs (0) 0 Alien Tech Used (0) 0 Bonus (0) 0 TOTAL SCORE: 899 Bonus ------- None Cogmind --------- Core Integrity 0/250 Matter 292/300 Energy 98/100 System Corruption 2% Temperature Cool (6) Movement Core (50) Location -10/Subcaves Parts ------- > --- POWER (1) -------- (None) > --- PROPULSION (2) --- (None) > --- UTILITY (2) ------ (None) > --- WEAPON (2) ------- (None) > --- INVENTORY (5) ---- Heat Sink Small Storage Unit Signal Interpreter Small Laser Mining Laser Peak State ------------ > --- POWER ------------ Ion Engine > --- PROPULSION ------- Light Treads Wheel > --- UTILITY ---------- Medium Storage Unit Seismic Detector > --- WEAPON ----------- Light Assault Rifle Mining Laser > --- INVENTORY -------- Light Ion Engine Light Ion Engine Light Treads Wheel Wheel Small Storage Unit Signal Interpreter Small Laser Small Laser Light Assault Rifle [Rating: 8] Favorites ----------- Power Light Ion Engine Engine Light Ion Engine Propulsion Wheel Treads Light Treads Wheel Wheel Utility Seismic Detector Device Seismic Detector Storage Medium Storage Unit Weapon Light Assault Rifle Energy Gun Small Laser Ballistic Gun Light Assault Rifle Special Weapon Mining Laser Build | -11 -10 -10 -10 ------- Run | Yrd Mat Min Sub Slots Evolved . | . . . . Power . | . . . . Propulsion . | . . . . Utility . | . . . . Weapon . | . . . . Parts Attached 15 | 8 4 2 1 Power 2 | 1 1 . . Engine 2 | 1 1 . . Core . | . . . . Reactor . | . . . . Propulsion 5 | 2 . 2 1 Treads 2 | 1 . 1 . Leg . | . . . . Wheel 3 | 1 . 1 1 Hover . | . . . . Flight . | . . . . Utility 3 | 2 1 . . Device 1 | 1 . . . Storage 2 | 1 1 . . Processor . | . . . . Hackware . | . . . . Protection . | . . . . Artifact . | . . . . Weapon 5 | 3 2 . . Energy Gun 2 | 2 . . . Energy Cannon . | . . . . Ballistic Gun 2 | 1 1 . . Ballistic Cannon . | . . . . Launcher . | . . . . Special Weapon 1 | . 1 . . Impact Weapon . | . . . . Slashing Weapon . | . . . . Piercing Weapon . | . . . . Special Melee Weapon . | . . . . Unidentified Prototypes . | . . . . Parts Lost 6 | . . 4 2 Power 1 | . . 1 . Propulsion 4 | . . 2 2 Utility . | . . . . Weapon 1 | . . 1 . Highest Loss Streak 4 | . . 4 2 To Critical Strikes . | . . . . Average Backups 6 | 2 7 7 6 Power . | . 1 . . Propulsion 1 | 1 2 1 . Utility 2 | . 1 4 4 Weapon 1 | . 1 1 2 Tool/Special . | . . . . Unused Backups 5 | . 1 . 4 Power 1 | . 1 . . Propulsion . | . . . . Utility 3 | . . . 3 Weapon 1 | . . . 1 Tool/Special . | . . . . Average Slot Usage (%) 99 | . 100 99 97 Engine 13 | . 14 13 14 Treads 13 | . 14 14 11 Wheel 13 | . 14 13 14 Device 14 | . 14 14 14 Storage 14 | . 14 14 14 Energy Gun 9 | . 7 12 14 Ballistic Gun 17 | . 19 15 14 Peak Build Rating 8 | 7 8 8 7 Average Rating 6 | 5 7 6 6 On Entrance 5 | . 7 8 7 Naked Turns 2 | . . . 2 Heaviest Build 18 | 11 18 16 16 Greatest Support 20 | 20 20 10 10 Greatest Overweight (x) 2 | 2 1 1 1 Average Overweight (x) . | . . 1 . Largest Inventory Capacity 10 | 8 10 10 10 Average Capacity 9 | 7 9 10 9 Most Carried 10 | 4 10 10 7 Average Carried 6 | 2 7 7 6 Final Capacity 10 | 8 10 10 5 Final Carried 10 | 4 10 7 5 Class Distribution -------------------- 100% | Mutant Dominant Class ---------------- Mutant | -10/Materials Mutant | -10/Mines Mutant | -10/Subcaves Resources | -11 -10 -10 -10 ----------- Run | Yrd Mat Min Sub Matter Collected 428 | 227 150 51 . Remotely . | . . . . Salvage Created 315 | 12 185 118 . Parts 24 | 5 12 7 . Haulers Intercepted . | . . . . Recyclers Shooed . | . . . . Parts Field Recycled . | . . . . Retrieved Matter . | . . . . Parts Self-Destructed . | . . . . Prevented . | . . . . Kills | -11 -10 -10 -10 ------- Run | Yrd Mat Min Sub Combat Hostiles Destroyed 8 | . 6 2 . Guns 8 | . 6 2 . Classes Destroyed 3 | 1 2 . . Tunneler 3 | 1 1 1 . Swarmer 3 | . 3 . . Grunt 5 | . 3 2 . Best Kill Streak 2 | 1 2 2 . Combat Bots Only 2 | . 2 2 . Max Kills in Single Turn 1 | 1 1 1 . Gunslinging . | . . . . Exploded . | . . . . Melee . | . . . . Uniques/NPCs Destroyed . | . . . . Combat | -11 -10 -10 -10 -------- Run | Yrd Mat Min Sub Hostile Shots Fired 89 | . 31 41 17 Missed 20 | . 5 12 3 Hits 69 | . 26 29 14 Projectile 69 | . 26 29 14 Critical Strikes 2 | . . 1 1 Damage Taken 944 | . 282 372 290 Core 266 | . 82 84 100 Absorbed by Shields . | . . . . Core Remaining (%) 100 | 100 . . . Volleys Fired 61 | 3 36 20 2 Largest 2 | 2 2 2 2 Hottest 100 | 60 100 60 60 Shots Fired 88 | 6 41 37 4 Gun 87 | 6 40 37 4 Cannon . | . . . . Launcher . | . . . . Special 1 | . 1 . . Kinetic 67 | 3 34 28 2 Thermal 21 | 3 7 9 2 Explosive . | . . . . Electromagnetic . | . . . . Robot Hit Streak 9 | 1 6 9 3 Robot Miss Streak 5 | 3 5 2 1 Penetration Max . | . . . . Secondary Targets . | . . . . Shots Hit Robots 54 | 2 21 28 3 Core Hits 20 | 2 11 7 . Critical Kills . | . . . . Critical Parts Destroyed . | . . . . Critical Strikes . | . . . . Melee Attacks . | . . . . Impact . | . . . . Slashing . | . . . . Piercing . | . . . . Sneak Attacks . | . . . . Combat Hostiles . | . . . . Follow-up Attacks . | . . . . Damage Inflicted 521 | 15 202 273 31 Guns 505 | 15 186 273 31 Cannons . | . . . . Explosions . | . . . . Melee . | . . . . Ramming 16 | . 16 . . Kinetic 370 | 15 141 195 19 Thermal 135 | . 45 78 12 Explosive . | . . . . Electromagnetic . | . . . . Impact . | . . . . Slashing . | . . . . Piercing . | . . . . Highest Corruption 2 | . 2 2 2 Average Corruption 2 | . 2 2 2 Corruption Purged . | . . . . Corruption Blocked . | . . . . Effects 11 | . 7 4 . Message Errors 1 | . 1 . . Matter Fused 4 | . 3 1 . Heat Flow Errors 2 | . 2 . . Energy Discharges 2 | . . 2 . Weapon Failures 2 | . 1 1 . Overload Shots . | . . . . Overflow Damage . | . . . . Projectiles . | . . . . Explosions . | . . . . Melee . | . . . . Knockbacks . | . . . . Impact . | . . . . Kinetic . | . . . . Secondary . | . . . . Self-Inflicted Damage 3 | . 3 . . Shots . | . . . . Rammed 2 | . 2 . . Targets Rammed 2 | . 2 . . Kicked . | . . . . Crushed . | . . . . Highest Temperature 250 | 40 250 80 . Average Temperature 59 | 23 90 31 . Received Heat Transfer 372 | . 60 234 78 Siege Activations . | . . . . Martial Activations . | . . . . Shielding Activations . | . . . . Robots Disrupted . | . . . . Combat Hostiles . | . . . . Robots Corrupted . | . . . . Combat Hostiles . | . . . . Parts Fried . | . . . . Impact Corruptions . | . . . . Robots Melted . | . . . . Combat Hostiles . | . . . . Parts Melted . | . . . . Heat Transferred 300 | . 100 175 25 Parts Sabotaged . | . . . . Parts Stolen . | . . . . Parts Stripped . | . . . . Power Chain Reactions . | . . . . Alert | -11 -10 -10 -10 ------- Run | Yrd Mat Min Sub Maximum Alert Level . | . . . . Low Security (%) 100 | 100 100 100 . Level 1 . | . . . . Level 2 . | . . . . Level 3 . | . . . . Level 4 . | . . . . Level 5 . | . . . . High Security . | . . . . Max Security . | . . . . Peak Influence 65 | 5 65 40 . Initial 15 | . . 15 . Average 12 | . 18 7 . Influence Increases 225 | 5 165 55 . Destroy 0b10 Robot/C 160 | . 120 40 . Destroy 0b10 Robot/NC 15 | 5 5 5 . Destroy Leader 20 | . 10 10 . Disable Machine 15 | . 15 . . Lose Combat Pursuer 15 | . 15 . . Influence Decreases 225 | 5 126 94 . Entered New Map 24 | . . 24 . Time Decay 186 | 5 126 55 . Lost Part 15 | . . 15 . Squads Dispatched 2 | . 2 . . Investigation 1 | . 1 . . Extermination . | . . . . Reinforcement 1 | . 1 . . Assault . | . . . . Garrison . | . . . . Intercept . | . . . . Searches Triggered . | . . . . Construction Impeded . | . . . . Haulers Reinforced . | . . . . Active Scanning Responses . | . . . . Cargo Convoy Interrupts . | . . . . Stealth | -11 -10 -10 -10 --------- Run | Yrd Mat Min Sub Distress Signals 5 | . 5 . . Communications Jammed . | . . . . Distress Signals . | . . . . Times Spotted 21 | . 14 3 4 Peak Tracking Total 5 | . 5 2 4 Tactical Retreats 1 | . 1 . . Traps | -11 -10 -10 -10 ------- Run | Yrd Mat Min Sub Traps Triggered 1 | . 1 . . Indirectly . | . . . . Trap Hack Attempts . | . . . . Triggered . | . . . . Disarmed . | . . . . Reprogrammed . | . . . . Reused . | . . . . Traps Extracted . | . . . . Installed . | . . . . Triggered . | . . . . Machines | -11 -10 -10 -10 ---------- Run | Yrd Mat Min Sub Machines Disabled 1 | . 1 . . Max in Single Turn 1 | . 1 . . Machines Repaired . | . . . . Machines Dismantled . | . . . . Machines Sabotaged . | . . . . Overloaded Fab Kills . | . . . . Hacking | -11 -10 -10 -10 --------- Run | Yrd Mat Min Sub Machines Accessed 2 | . 1 1 . Terminals 1 | . 1 . . Fabricators . | . . . . Repair Stations . | . . . . Recycling Units . | . . . . Scanalyzers . | . . . . Garrison Access . | . . . . Total Hacks 4 | . 3 1 . Successful 1 | . . 1 . Failed 3 | . 3 . . Catastrophic 1 | . 1 . . Database Lockouts . | . . . . Manual 3 | . 3 . . Terminals 3 | . 3 . . Fabricators . | . . . . Repair Stations . | . . . . Recycling Units . | . . . . Scanalyzers . | . . . . Garrison Access . | . . . . Terminal Hacks 1 | . . 1 . Open Door 1 | . . 1 . Fabricator Hacks . | . . . . Repair Station Hacks . | . . . . Recycling Unit Hacks . | . . . . Scanalyzer . | . . . . Garrison Access Hacks . | . . . . Unauthorized Hacks . | . . . . Terminals . | . . . . Fabricators . | . . . . Repair Stations . | . . . . Recycling Units . | . . . . Scanalyzers . | . . . . Garrison Access . | . . . . Data Cores Recovered . | . . . . Used . | . . . . Hacking Detections 1 | . 1 . . Full Trace Events 1 | . 1 . . Feedback Events . | . . . . Feedback Blocked . | . . . . Robot Schematics Acquired . | . . . . Robots Built . | . . . . Authchips . | . . . . Time . | . . . . Total Robot Build Rating . | . . . . Part Schematics Acquired . | . . . . Parts Built . | . . . . Authchips . | . . . . Time . | . . . . Total Part Build Rating . | . . . . Parts Repaired . | . . . . Time . | . . . . Parts Recycled . | . . . . Recycled Matter . | . . . . Retrieved Matter . | . . . . Retrieved Components . | . . . . Parts Scanalyzed . | . . . . Part Schematics Acquired . | . . . . Parts Damaged . | . . . . Bothacking | -11 -10 -10 -10 ------------ Run | Yrd Mat Min Sub Used RIF Installer . | . . . . Robots Hacked . | . . . . Non-combat . | . . . . Combat . | . . . . Robot Hacks Applied . | . . . . Relay Couplers Released . | . . . . Fabnet Peak Effective % . | . . . . Robots Rewired . | . . . . Allies Hacked . | . . . . Hacks Repelled . | . . . . Allies | -11 -10 -10 -10 -------- Run | Yrd Mat Min Sub Total Allies . | . . . . Largest Group . | . . . . Highest-Rated Group . | . . . . Highest-Rated Ally . | . . . . Total Orders . | . . . . Ally Attacks . | . . . . Total Damage . | . . . . Kills . | . . . . Allies Corrupted . | . . . . Allies Melted . | . . . . Intel | -11 -10 -10 -10 ------- Run | Yrd Mat Min Sub Active Infowar (turns) 781 | 27 422 286 46 Seismic 781 | 27 422 286 46 Robot Analysis Total . | . . . . Derelict Logs Recovered 1 | . . 1 . Drone Launches . | . . . . Drone Recoveries . | . . . . Exploration | -11 -10 -10 -10 ------------- Run | Yrd Mat Min Sub Turns Passed 848 | 92 422 286 48 Spaces Moved 608 | 47 274 241 46 Core 11 | 6 . . 5 Treads 125 | 38 87 . . Legs . | . . . . Wheels 472 | 3 187 241 41 Hover . | . . . . Flight . | . . . . Fastest Speed 50 | 50 95 95 50 Average Speed 107 | 146 115 95 90 Slowest Speed 160 | 160 160 95 95 Overloaded Moves . | . . . . Propulsion Burnouts . | . . . . Robots Hopped . | . . . . Potential Cave-ins . | . . . . Cave-ins Triggered . | . . . . Exploration Rate (%) 35 | 4 61 73 5 Regions Visited 3 Branch Regions 2 Pre-discovered Areas . | . . . . Known Exits Taken . | . . . . Unknown Exits Taken 3 | 1 1 1 . Scrap Searched 1 | . . 1 . Spaces Dug . | . . . . Terrain Destroyed . | . . . . Melee . | . . . . Projectile . | . . . . AOE . | . . . . Terrain Rammed . | . . . . Walls Destroyed . | . . . . Machines Disabled . | . . . . Actions | -11 -10 -10 -10 --------- Run | Yrd Mat Min Sub Total 714 | 61 339 265 49 Wait 16 | . 16 . . Move 605 | 46 273 240 46 Hop . | . . . . Pick Up 10 | 4 5 1 . Fast Attach 7 | 7 . . . Attach 5 | . . 4 1 Detach . | . . . . Swap 6 | 1 5 . . Drop 2 | . 2 . . Fire 61 | 3 36 20 2 Melee . | . . . . Ram 1 | . 1 . . Kick . | . . . . Crush 1 | . 1 . . Escape Stasis . | . . . . Rewire . | . . . . Trap . | . . . . Miscellaneous . | . . . . Route ------- -11/Scrapyard -10/Materials (discovered 2 exits: *Mat / *Min) -10/Mines (discovered 3 exits: *Mat x2 / [*Sub]) -10/Subcaves History --------- Turn | Location | Event 21 | -11/Scrapyard | Discovered new exit (range 13) 93 | -11/Scrapyard | Entered Materials 271 | -10/Materials | Discovered new exit (range 15) 303 | -10/Materials | Build established: Mutant 501 | -10/Materials | Discovered new exit (range 15) 515 | -10/Materials | Entered Mines 535 | -10/Mines | Met a Derelict bent on vengeance 544 | -10/Mines | Core integrity fell below 50% 574 | -10/Mines | Lost 4 parts (1p2n1w) 577 | -10/Mines | Discovered new exit (range 8) 689 | -10/Mines | Identified exit to Materials 785 | -10/Mines | Discovered new exit (range 13) 787 | -10/Mines | Found the Drone Emporium 801 | -10/Mines | Entered Subcaves 802 | -10/Subcaves | Approached by a straggling Scientist 806 | -10/Subcaves | Ambushed by Subdwellers from Twisted Machinery 823 | -10/Subcaves | Core integrity fell below 20% 847 | -10/Subcaves | Released all parts (6) 849 | -10/Subcaves | Destroyed by EJ-BRN(R) with Subdweller Laser Last Messages --------------- AMBIENT_HEAT=-10 GOAL=ESCAPE 00802_ 6L-EM4(c): "Thank the algorithms! I was beginning to lose hope I'd never make it past all the Subs lurking out here." 00805_ 6L-EM4(c): "Hey, let me tag along and I can get us both out of this nasty situation. At least I think I can... The group I got separated from was talking about a shortcut back to the UFD." 00806_ EJ-BRN(R) emerges from the Twisted Machinery. 00826_ Wheel destroyed. 00836_ Lgt. Treads destroyed. 00847_ Released Sml. Laser. 00847_ Released Lgt. Ion Engine. 00847_ Released Lgt. Assault Rifle. 00847_ Released Seismic Detector. 00847_ Released Med. Storage Unit. 00847_ Released Wheel. Map ----- +----------------------------------------------------+ | ?????????????????????????????????????????????????? | | ????????????????????????????????????#????????????? | | ???????????????????????????????????? ????????????? | | ???????????????????????????????????# ? ????????? | | ???????????????????????????????????# " ????????? | | ??????????????????????????????????## " ????????? | | ??????????????????????????????????# ????????? | | ??????????????????????????????????? """?????????? | | ??????????????????????????????????? ?????????? | | ??????????????????????????????????? ?????????? | | ???????????????????????????????????# #?????????? | | ???????????????????????????????????# ##????????? | | ???????????????###????????????????## ?????????? | | ??????????????## ############????# #####?????? | | ?????????????## #????# ##????? | | ?????????????# ###### #????? | | ?????????????#### R ## ## ## #??#?? | | ????????????????# ##R ## ##????? #?? | | ?????????????" ###" ## ### #???? #?? | | ???????????#"" #?# " *=##R ## ### #?? | | ??????????? "" ##??# "![[ R ## #???????? | | ???????????"" #????# "!! ##???????? | | ???????????"" ?????# " # ##????????? | | ???????????"" ??????##" ### ### #?????????? | | ???????????""????????## ##?# ##?# #????????? | | ???????????"??????????# @#??####??# " #???????? | | ??????????????????????## #??????? """""#??????? | | ???????????????????????## #?????? """" #?????? | | ????????????????????????# ???? """"##?????? | | ????????????????????????## ??? " """#???????? | | ?????????????????????????? #?? """ ??????????? | | ?????????????????????????? #?##""""??????????? | | ?????????????????????????? ##??##?# ??????????? | | ??????????????????????????#####???????#??????????? | | ?????????????????????????????????????????????????? | | ?????????????????????????????????????????????????? | | ?????????????????????????????????????????????????? | | ?????????????????????????????????????????????????? | | ?????????????????????????????????????????????????? | | ?????????????????????????????????????????????????? | | ?????????????????????????????????????????????????? | | ?????????????????????????????????????????????????? | | ?????????????????????????????????????????????????? | | ?????????????????????????????????????????????????? | | ?????????????????????????????????????????????????? | | ?????????????????????????????????????????????????? | | ?????????????????????????????????????????????????? | | ?????????????????????????????????????????????????? | | | | | +----------------------------------------------------+ Best States ------------- Heat Dissipation 25 Energy Generation 10 Energy Capacity 250 Matter Stores 300 Matter Capacity 300 Sight Range 16 Terrain Scan Density 10 Evasion (%) 41 Recoil Reduction 1 Item Schematics ----------------- None Robot Schematics ------------------ None Fabricated ------------ Nothing Repaired ---------- Nothing Alien Tech Used ----------------- None Achievements -------------- None Challenges ------------ None Game ------ Seed HypercooledAmuletReplicator Manual? 0 Play Time 00:11:30 Cumulative 47.8 hours Start 2025.08.23 @ 23:06:22 End 2025.08.23 @ 23:17:19 Sessions 1 Manual Loads 0 Difficulty Rogue Special Mode None Game No. 77 Rogue 77 Adventurer 0 Explorer 0 Win Type - Total 0 Types 0/0/0/0/0/0/0/0/0/0 Lore% 30 Gallery% 38 Achievement% 35 Wizard Run 0 Options --------- Layout 1 ASCII 0 Keyboard 0 Movement Vi Keybinds 0 Fullscreen 1 Font 24/Smallcaps Map View 50x35 Zoom Use 0% Tactical HUD 1 Map Filters NONE Filters NONE Steam 1 RUN: e152c0d9-8c7a-45fe-924f-557c5a15843d